bitfinex/quotes_BTCUSD_20241001
["timestamp","ask_amount","ask_price","bid_price","bid_amount"]
[1727821460079,0.002,60938.0,60937.0,0.35835559]
[1727821461258,0.002,60938.0,60937.0,0.18375559]
[1727821461503,0.0277217,60938.0,60937.0,0.18375559]
[1727821461734,0.002,60938.0,60937.0,0.18375559]
[1727821463444,0.002,60938.0,60937.0,0.32642357]
[1727821464127,0.002,60938.0,60937.0,0.50102357]
[1727821464841,0.002,60938.0,60937.0,0.52402357]
[1727821465067,0.001638,60944.0,60943.0,0.54823132]
[1727821465779,0.001638,60944.0,60943.0,0.37363132]
[1727821465991,0.001638,60944.0,60943.0,0.35063132]
[1727821466228,0.001638,60944.0,60943.0,0.36463132]
[1727821466457,0.002638,60944.0,60943.0,0.36463132]
[1727821466699,0.002638,60944.0,60943.0,0.178087]
[1727821467170,0.003638,60944.0,60943.0,0.185087]
[1727821467869,0.003638,60944.0,60943.0,0.37163132]
[1727821468546,0.02935809,60944.0,60943.0,0.37163132]
[1727821470721,0.02935809,60944.0,60943.0,0.20754432]
[1727821470957,0.02935809,60944.0,60943.0,0.20420379]
[1727821470958,0.19344309,60944.0,60943.0,0.20420379]
[1727821471181,0.19344309,60944.0,60943.0,0.01765947]
[1727821471656,0.003638,60944.0,60943.0,0.01765947]
[1727821472133,0.003638,60944.0,60943.0,0.18174647]
[1727821472861,0.003638,60944.0,60943.0,0.01765947]
[1727821473092,0.003638,60944.0,60943.0,0.18174647]
[1727821478454,0.003638,60944.0,60943.0,0.18256547]
[1727821480316,0.003638,60944.0,60943.0,0.16856307]
[1727821481640,0.003638,60944.0,60943.0,0.1718444]
[1727821481860,0.003638,60944.0,60943.0,0.2501444]
[1727821482365,0.003638,60944.0,60943.0,0.25014419]
[1727821482802,0.003638,60944.0,60943.0,0.26986307]
[1727821484189,0.02935739,60944.0,60943.0,0.26986307]
[1727821484436,0.02935739,60944.0,60943.0,0.42166204]
[1727821484658,0.02835739,60944.0,60943.0,0.42166204]
[1727821484923,0.02835739,60944.0,60943.0,0.41800497]
[1727821485147,0.02735739,60944.0,60943.0,0.41800497]
[1727821485392,0.02935739,60944.0,60943.0,0.43200497]
[1727821485624,0.02935739,60944.0,60943.0,0.280206]
[1727821485865,0.02835739,60944.0,60943.0,0.266206]
[1727821486102,0.02935739,60944.0,60943.0,0.280206]
[1727821486567,0.002638,60944.0,60943.0,0.266206]
[1727821487018,0.002638,60944.0,60943.0,0.280206]
[1727821487238,0.001638,60944.0,60943.0,0.280206]
[1727821487497,0.001638,60944.0,60943.0,0.44211457]
[1727821487724,0.001638,60944.0,60943.0,0.42811457]
[1727821488414,0.002638,60944.0,60943.0,0.44211457]
[1727821488903,0.002638,60944.0,60943.0,0.294206]
[1727821489830,0.02835747,60944.0,60943.0,0.294206]
[1727821490079,0.002638,60944.0,60943.0,0.294206]
[1727821490576,0.002638,60944.0,60943.0,0.45890045]
[1727821491030,0.002638,60944.0,60943.0,0.46090045]
[1727821491254,0.002638,60944.0,60943.0,0.62578227]
[1727821491474,0.002638,60944.0,60943.0,0.60978227]
[1727821491703,0.001638,60944.0,60943.0,0.59578227]
[1727821491948,0.003638,60944.0,60943.0,0.62378227]
[1727821492950,0.003638,60944.0,60943.0,0.62578227]
[1727821493174,0.003638,60944.0,60943.0,0.67502494]
[1727821493399,0.02935588,60944.0,60943.0,0.69964628]
[1727821493618,0.003638,60944.0,60943.0,0.67501132]
[1727821493842,0.003638,60944.0,60943.0,0.62578227]
[1727821494077,0.0494065,60950.0,60949.0,0.164071]
[1727821494307,0.24615385,60954.0,60953.0,0.16406]
[1727821494525,0.24615385,60954.0,60953.0,0.30946569]
[1727821494752,0.001636,60955.0,60954.0,0.164058]
[1727821495238,0.165662,60966.0,60965.0,0.164028]
[1727821495239,0.001636,60966.0,60965.0,0.164028]
[1727821495502,0.24615385,60970.0,60969.0,0.164017]
[1727821495717,0.24615385,60970.0,60969.0,0.35186607]
[1727821495952,0.001638,60973.0,60972.0,0.164009]
[1727821496194,0.001638,60973.0,60972.0,0.28641469]
[1727821496871,0.001638,60973.0,60972.0,0.31269427]
[1727821497562,0.001638,60973.0,60972.0,0.37652003]
[1727821497810,0.001638,60973.0,60972.0,0.51654589]
[1727821498489,0.001638,60973.0,60972.0,0.53054589]
[1727821498742,0.001638,60973.0,60972.0,0.53254589]
[1727821498963,0.001638,60973.0,60972.0,0.54454589]
[1727821499189,0.001638,60973.0,60972.0,0.51654589]
[1727821499413,0.001638,60973.0,60972.0,0.53054589]
[1727821499657,0.001638,60973.0,60972.0,0.53254589]
[1727821499888,0.001638,60973.0,60972.0,0.64805589]
[1727821500399,0.001638,60983.0,60979.0,0.002]
[1727821500629,0.001638,60983.0,60982.0,0.269582]
[1727821501092,0.001638,60983.0,60982.0,0.186982]
[1727821501319,0.02734046,60983.0,60982.0,0.186982]
[1727821501543,0.001638,60983.0,60982.0,0.186982]
[1727821501766,0.001638,60983.0,60982.0,0.2692206]
[1727821502684,0.001638,60983.0,60982.0,0.177982]
[1727821504308,0.001638,60983.0,60982.0,0.028]
[1727821504551,0.001638,60983.0,60982.0,0.014]
[1727821504767,0.001638,60983.0,60982.0,0.163982]
[1727821504986,0.001638,60983.0,60982.0,0.014]
[1727821505214,0.001638,60983.0,60982.0,0.13051795]
[1727821505433,0.001638,60983.0,60982.0,0.10251795]
[1727821505645,0.001638,60983.0,60982.0,0.13051795]
[1727821506157,0.001638,60983.0,60982.0,0.11651795]
[1727821506380,0.001638,60983.0,60982.0,0.13051795]
[1727821506606,0.001638,60983.0,60982.0,0.29449995]
[1727821506831,0.001638,60983.0,60982.0,0.13051795]
[1727821507051,0.001638,60983.0,60982.0,0.11651795]
[1727821507290,0.001638,60983.0,60982.0,0.13051795]
[1727821507524,0.001638,60983.0,60982.0,0.28049995]
[1727821507742,0.001638,60983.0,60982.0,0.11651795]
[1727821508081,0.001638,60983.0,60982.0,0.13051795]
[1727821508166,0.001638,60983.0,60982.0,0.11651795]
[1727821508387,0.001638,60983.0,60982.0,0.13051795]
[1727821509518,0.001638,60983.0,60982.0,0.028]
[1727821509519,0.338718,60983.0,60982.0,0.028]
[1727821510435,0.438718,60983.0,60982.0,0.028]
[1727821510679,0.5,60977.0,60970.0,0.0496045]
[1727821510905,0.241712,60971.0,60970.0,0.0496045]
[1727821511430,0.164023,60967.0,60963.0,0.18623145]
[1727821511659,0.16402,60968.0,60963.0,0.35026345]
[1727821511904,0.328041,60968.0,60963.0,0.27868188]
[1727821512129,0.164026,60966.0,60963.0,0.27868188]
[1727821512347,0.32803,60970.0,60963.0,0.27868188]
[1727821512583,0.32803,60970.0,60963.0,0.18623145]
[1727821512801,0.164023,60967.0,60963.0,0.18704945]
[1727821513485,0.16402,60969.0,60964.0,0.164031]
[1727821513700,0.32803,60970.0,60963.0,0.20104945]
[1727821513914,0.164031,60964.0,60963.0,0.014818]
[1727821514131,0.164031,60964.0,60963.0,0.013818]
[1727821514355,0.328055,60966.0,60963.0,0.013818]
[1727821514356,0.16403,60965.0,60963.0,0.013818]
[1727821514629,0.16403,60965.0,60963.0,0.000818]
[1727821514854,0.16403,60965.0,60964.0,0.011]
[1727821515093,0.164027,60966.0,60964.0,0.011]
[1727821515313,0.164028,60965.0,60964.0,0.011]
[1727821516212,0.328046,60968.0,60963.0,0.014818]
[1727821516444,0.164029,60965.0,60963.0,0.028818]
[1727821516647,0.164029,60965.0,60963.0,0.014818]
[1727821516865,0.02571157,60967.0,60963.0,0.20104945]
[1727821517105,0.164023,60967.0,60964.0,0.09972134]
[1727821517816,0.164023,60967.0,60964.0,0.08572134]
[1727821518268,0.328032,60970.0,60964.0,0.08572134]
[1727821518510,0.164023,60967.0,60964.0,0.08572134]
[1727821519006,0.164023,60967.0,60964.0,0.24975134]
[1727821519231,0.164023,60967.0,60965.0,0.11059518]
[1727821519470,0.164026,60966.0,60963.0,0.18704945]
[1727821519734,0.164026,60966.0,60964.0,0.013]
[1727821519735,0.164029,60965.0,60964.0,0.013]
[1727821520234,0.164031,60964.0,60963.0,0.000818]
[1727821520715,0.342831,60964.0,60963.0,0.000818]
[1727821522604,0.342831,60964.0,60963.0,0.012818]
[1727821523058,0.342831,60964.0,60963.0,0.022818]
[1727821523550,0.342831,60964.0,60963.0,0.012818]
[1727821523551,0.37394835,60964.0,60963.0,0.012818]
[1727821523772,0.37394835,60964.0,60963.0,0.022818]
[1727821523773,0.34823318,60964.0,60963.0,0.022818]
[1727821524666,0.34823318,60964.0,60963.0,0.010818]
[1727821524922,0.34823318,60964.0,60963.0,0.022818]
[1727821525595,0.342831,60964.0,60963.0,0.022818]
[1727821528391,0.36854597,60964.0,60963.0,0.022818]
[1727821528589,0.342831,60964.0,60963.0,0.022818]
[1727821529830,0.4432682,60964.0,60963.0,0.022818]
[1727821530064,0.58898485,60964.0,60963.0,0.022818]
[1727821530319,1.4583583,60964.0,60963.0,0.022818]
[1727821530575,1.21220445,60964.0,60963.0,0.022818]
[1727821531254,1.21220445,60964.0,60963.0,0.010818]
[1727821531480,1.23792144,60964.0,60963.0,0.010818]
[1727821531731,1.37908627,60964.0,60963.0,0.000818]
[1727821531960,1.37667379,60964.0,60963.0,0.000818]
[1727821532195,1.37867379,60964.0,60963.0,0.000818]
[1727821534565,1.40439283,60964.0,60963.0,0.000818]
[1727821535028,1.23951101,60964.0,60963.0,0.000818]
[1727821535250,1.07492001,60964.0,60963.0,0.000818]
[1727821536152,1.04720097,60964.0,60963.0,0.000818]
[1727821536630,0.84069552,60964.0,60963.0,0.000818]
[1727821536874,0.76259552,60964.0,60963.0,0.000818]
[1727821537330,1.06663052,60964.0,60963.0,0.000818]
[1727821537609,0.94405452,60964.0,60963.0,0.000818]
[1727821537832,0.94705452,60964.0,60963.0,0.000818]
[1727821538026,0.94405452,60964.0,60963.0,0.000818]
[1727821538279,1.10761407,60964.0,60963.0,0.000818]
[1727821538531,0.94705452,60964.0,60963.0,0.000818]
[1727821539472,0.97277279,60964.0,60963.0,0.000818]
[1727821539737,0.94705452,60964.0,60963.0,0.000818]
[1727821541912,1.01282752,60964.0,60963.0,0.000818]
[1727821542912,1.03854541,60964.0,60963.0,0.000818]
[1727821543159,1.01282752,60964.0,60963.0,0.000818]
[1727821545140,1.00982752,60964.0,60963.0,0.000818]
[1727821545385,1.01182752,60964.0,60963.0,0.000818]
[1727821545880,1.00982752,60964.0,60963.0,0.000818]
[1727821546377,1.03554549,60964.0,60963.0,0.000818]
[1727821547518,1.00982752,60964.0,60963.0,0.000818]
[1727821548425,1.17470934,60964.0,60963.0,0.000818]
[1727821549647,1.01282752,60964.0,60963.0,0.000818]
[1727821550602,0.66825452,60964.0,60963.0,0.000818]
[1727821550817,0.19397235,60964.0,60963.0,0.000818]
[1727821551037,0.16525452,60964.0,60963.0,0.000818]
[1727821551263,0.41340837,60964.0,60963.0,0.000818]
[1727821551488,0.16525452,60964.0,60963.0,0.000818]
[1727821551955,0.16525452,60964.0,60963.0,0.005818]
[1727821552182,0.16525452,60964.0,60963.0,0.002818]
[1727821552671,0.16525452,60964.0,60963.0,0.011818]
[1727821552975,0.16525452,60964.0,60963.0,0.002818]
[1727821553008,0.16525452,60964.0,60963.0,0.000818]
[1727821553217,0.16525452,60964.0,60963.0,0.004818]
[1727821553803,0.16525452,60964.0,60963.0,0.000818]
[1727821554255,0.19096948,60964.0,60963.0,0.000818]
[1727821554465,0.19096948,60964.0,60963.0,0.007818]
[1727821554705,0.19096948,60964.0,60963.0,0.014818]
[1727821554926,0.19096948,60964.0,60963.0,0.007818]
[1727821555359,0.19096948,60964.0,60963.0,0.016818]
[1727821555360,0.16525452,60964.0,60963.0,0.016818]
[1727821556583,0.001636,60964.0,60963.0,0.53988245]
[1727821556785,0.001636,60964.0,60963.0,0.6594864]
[1727821557443,0.001636,60964.0,60963.0,0.6754864]
[1727821557831,0.001636,60964.0,60963.0,0.6824864]
[1727821558228,0.001636,60964.0,60963.0,0.6734864]
[1727821558495,0.001636,60964.0,60963.0,0.6814864]
[1727821558721,0.02734662,60964.0,60963.0,0.6814864]
[1727821558940,0.02734662,60964.0,60963.0,0.6584864]
[1727821559153,0.02734662,60964.0,60963.0,0.6654864]
[1727821559353,0.02734662,60964.0,60963.0,0.6574864]
[1727821559607,0.02734662,60964.0,60963.0,0.6714864]
[1727821559820,0.001636,60964.0,60963.0,0.6434864]
[1727821560058,0.001636,60964.0,60963.0,0.6574864]
[1727821560272,0.001636,60964.0,60963.0,0.6714864]
[1727821560492,0.001636,60964.0,60963.0,0.6574864]
[1727821560771,0.001636,60964.0,60963.0,0.53788245]
[1727821561041,0.165667,60964.0,60963.0,0.028818]
[1727821561956,0.165667,60964.0,60963.0,0.014818]
[1727821562649,0.165667,60964.0,60963.0,0.000818]
[1727821562858,0.19138123,60964.0,60963.0,0.015818]
[1727821563075,0.19138123,60964.0,60963.0,0.006818]
[1727821563309,0.165667,60964.0,60963.0,0.000818]
[1727821563521,0.165667,60964.0,60963.0,0.013818]
[1727821563753,0.165667,60964.0,60963.0,0.006818]
[1727821563997,0.165667,60964.0,60963.0,0.000818]
[1727821565161,0.19138175,60964.0,60963.0,0.000818]
[1727821565646,0.19138175,60964.0,60963.0,0.010818]
[1727821565859,0.19138175,60964.0,60963.0,0.018818]
[1727821566134,0.19138175,60964.0,60963.0,0.008818]
[1727821566359,0.19138175,60964.0,60963.0,0.000818]
[1727821566576,0.19138175,60964.0,60963.0,0.006818]
[1727821566788,0.19138175,60964.0,60963.0,0.013818]
[1727821567210,0.19138175,60964.0,60963.0,0.007818]
[1727821567449,0.19138175,60964.0,60963.0,0.015818]
[1727821567882,0.165667,60964.0,60963.0,0.015818]
[1727821568094,0.165667,60964.0,60963.0,0.008818]
[1727821568340,0.165667,60964.0,60963.0,0.018818]
[1727821568557,0.35274848,60964.0,60963.0,0.018818]
[1727821568800,0.35274848,60964.0,60963.0,0.010818]
[1727821569014,0.35274848,60964.0,60963.0,0.016818]
[1727821569475,0.35274848,60964.0,60963.0,0.010818]
[1727821569697,0.29138232,60964.0,60963.0,0.010818]
[1727821569923,0.29138232,60964.0,60963.0,0.018818]
[1727821570854,0.02735132,60964.0,60963.0,0.20504945]
[1727821571108,0.29138232,60964.0,60963.0,0.018818]
[1727821572026,0.29138232,60964.0,60963.0,0.010818]
[1727821572239,0.29138232,60964.0,60963.0,0.009818]
[1727821572462,0.29138232,60964.0,60963.0,0.020818]
[1727821572694,0.02735132,60964.0,60963.0,0.020818]
[1727821573141,0.12735132,60964.0,60963.0,0.020818]
[1727821573596,0.02735132,60964.0,60963.0,0.37108245]
[1727821573838,0.02735132,60964.0,60963.0,0.5334394]
[1727821574272,0.02735132,60964.0,60963.0,0.6237394]
[1727821574728,0.02735132,60964.0,60963.0,0.6127394]
[1727821574942,0.02735132,60964.0,60963.0,0.6267394]
[1727821575161,0.02735132,60964.0,60963.0,0.6177394]
[1727821575842,0.02735132,60964.0,60963.0,0.6037394]
[1727821576052,0.02735132,60964.0,60963.0,0.6177394]
[1727821576501,0.02735132,60964.0,60963.0,0.6547394]
[1727821576927,0.02735132,60964.0,60963.0,0.6876494]
[1727821577155,0.001636,60964.0,60963.0,0.6896494]
[1727821577369,0.001636,60964.0,60963.0,0.6756494]
[1727821577583,0.001636,60964.0,60963.0,0.6736494]
[1727821578069,0.001636,60964.0,60963.0,0.6756494]
[1727821578296,0.001636,60964.0,60963.0,0.6876494]
[1727821578979,0.001636,60964.0,60963.0,0.6736494]
[1727821579187,0.001636,60964.0,60963.0,0.6876494]
[1727821581039,0.001636,60964.0,60963.0,0.6896494]
[1727821581458,0.001636,60964.0,60963.0,0.6876494]
[1727821583967,0.24615385,60981.0,60972.0,0.38223145]
[1727821584198,0.24615385,60981.0,60980.0,0.43291945]
[1727821584432,0.24615385,60981.0,60980.0,0.54621945]
[1727821584932,0.165608,60987.0,60982.0,0.163982]
[1727821585401,0.001638,60987.0,60981.0,0.327971]
[1727821585872,0.163973,60986.0,60982.0,0.163982]
[1727821586573,0.165608,60987.0,60982.0,0.163982]
[1727821587240,0.02734208,60983.0,60982.0,0.163982]
[1727821587477,0.02734208,60983.0,60982.0,0.177982]
[1727821587705,0.02734208,60983.0,60982.0,0.25763895]
[1727821587929,0.02734208,60983.0,60982.0,0.27163895]
[1727821588420,0.02734208,60983.0,60982.0,0.24363895]
[1727821588644,0.02734208,60983.0,60982.0,0.25763895]
[1727821589117,0.02734208,60983.0,60982.0,0.27163895]
[1727821590083,0.02734208,60983.0,60982.0,0.25763895]
[1727821590536,0.001638,60983.0,60982.0,0.25763895]
[1727821591192,0.001638,60983.0,60982.0,0.27163895]
[1727821591457,0.001638,60983.0,60982.0,0.24363895]
[1727821591905,0.001638,60983.0,60982.0,0.27163895]
[1727821592383,0.001638,60983.0,60982.0,0.28563895]
[1727821592854,0.001638,60983.0,60982.0,0.042]
[1727821592855,0.165618,60983.0,60982.0,0.042]
[1727821593052,0.165618,60983.0,60982.0,0.028]
[1727821593053,0.001638,60983.0,60982.0,0.028]
[1727821593315,0.001638,60983.0,60982.0,0.042]
[1727821593545,0.001638,60983.0,60982.0,0.014]
[1727821593768,0.02734273,60983.0,60982.0,0.014]
[1727821593996,0.02734273,60983.0,60982.0,0.191982]
[1727821594217,0.02734273,60983.0,60982.0,0.014]
[1727821594433,0.02734273,60983.0,60982.0,0.028]
[1727821595165,0.19132273,60983.0,60982.0,0.028]
[1727821595381,0.02734273,60983.0,60982.0,0.028]
[1727821597662,0.165618,60983.0,60982.0,0.028]
[1727821598160,0.02734331,60983.0,60982.0,0.028]
[1727821598399,0.02734331,60983.0,60982.0,0.191982]
[1727821598644,0.02734331,60983.0,60982.0,0.028]
[1727821600606,0.02734331,60983.0,60982.0,0.29539925]
[1727821600607,0.01322209,60983.0,60982.0,0.29539925]
[1727821600857,0.001638,60987.0,60982.0,0.13081725]
[1727821601080,0.001638,60987.0,60986.0,0.18623145]
[1727821601303,0.001638,60987.0,60986.0,0.26712962]
[1727821602956,0.165607,60987.0,60986.0,0.26712962]
[1727821603190,0.165607,60987.0,60986.0,0.28112962]
[1727821603431,0.165607,60987.0,60986.0,0.20023145]
[1727821603653,0.165607,60987.0,60986.0,0.028]
[1727821604343,0.02734216,60987.0,60986.0,0.028]
[1727821605051,0.02734216,60987.0,60986.0,0.014]
[1727821605280,0.001638,60987.0,60986.0,0.21423145]
[1727821605757,0.001638,60987.0,60986.0,0.36420345]
[1727821605987,0.001638,60987.0,60986.0,0.31140399]
[1727821606211,0.001638,60987.0,60986.0,0.21423145]
[1727821606443,0.001638,60987.0,60986.0,0.20023145]
[1727821606945,0.001638,60987.0,60986.0,0.35020345]
[1727821607180,0.001638,60987.0,60986.0,0.36420345]
[1727821607405,0.001638,60987.0,60986.0,0.37820345]
[1727821608340,0.02734093,60987.0,60986.0,0.48937509]
[1727821609288,0.02734093,60987.0,60986.0,0.37820345]
[1727821609984,0.02734093,60987.0,60986.0,0.35020345]
[1727821610203,0.02734093,60987.0,60986.0,0.36420345]
[1727821610420,0.02734093,60987.0,60986.0,0.37820345]
[1727821610694,0.02734093,60987.0,60986.0,0.36420345]
[1727821610946,0.02734093,60987.0,60986.0,0.4879751]
[1727821611244,0.02734093,60987.0,60986.0,0.6074851]
[1727821611723,0.02734093,60987.0,60986.0,0.78617955]
[1727821611982,0.001638,60999.0,60997.0,0.42777345]
[1727821612217,0.001638,60999.0,60997.0,0.5683203]
[1727821613360,0.001638,60999.0,60997.0,0.5823203]
[1727821614054,0.001638,60999.0,60997.0,0.5963203]
[1727821614770,0.001638,60999.0,60997.0,0.5823203]
[1727821615016,0.001638,60999.0,60997.0,0.6292303]
[1727821615237,0.001638,60999.0,60998.0,0.219849]
[1727821615466,0.001638,60999.0,60998.0,0.46978875]
[1727821616589,0.001638,60999.0,60998.0,0.48378875]
[1727821617581,0.001638,60999.0,60998.0,0.3190943]
[1727821618054,0.001638,60999.0,60998.0,0.3330943]
[1727821619009,0.001638,60999.0,60998.0,0.3001843]
[1727821619480,0.001638,60999.0,60998.0,0.2771843]
[1727821620415,0.02733556,60999.0,60998.0,0.2771843]
[1727821621430,0.001638,60999.0,60998.0,0.2771843]
[1727821623818,0.001638,60999.0,60998.0,0.028]
[1727821623819,0.165575,60999.0,60998.0,0.028]
[1727821624318,0.001638,60999.0,60998.0,0.028]
[1727821624794,0.165575,60999.0,60998.0,0.014]
[1727821625031,0.245175,60999.0,60998.0,0.024]
[1727821625260,0.245175,60999.0,60998.0,0.01]
[1727821625494,0.245175,60999.0,60998.0,0.012]
[1727821625773,0.081238,60999.0,60998.0,0.012]
[1727821625998,0.1069365,60999.0,60998.0,0.01]
[1727821626241,0.2708735,60999.0,60998.0,0.022]
[1727821626517,0.2708735,60999.0,60998.0,0.01]
[1727821626752,0.2708735,60999.0,60998.0,0.023]
[1727821626753,0.335375,60999.0,60998.0,0.023]
[1727821626994,0.335375,60999.0,60998.0,0.01]
[1727821627214,0.163949,60995.0,60991.0,0.35018945]
[1727821627669,0.163951,60994.0,60991.0,0.18623145]
[1727821627917,0.163955,60992.0,60991.0,0.18623145]
[1727821628154,0.24615385,60998.0,60987.0,0.18623145]
[1727821628155,0.327885,60997.0,60987.0,0.18623145]
[1727821628402,0.163954,60993.0,60987.0,0.40672717]
[1727821628646,0.163954,60993.0,60987.0,0.18623145]
[1727821628647,0.163959,60991.0,60987.0,0.18623145]
[1727821629111,0.163959,60991.0,60987.0,0.35020045]
[1727821629370,0.163959,60991.0,60987.0,0.36419945]
[1727821629903,0.163959,60991.0,60987.0,0.35019945]
[1727821630619,0.163959,60991.0,60987.0,0.37819945]
[1727821632205,0.327908,60993.0,60988.0,0.163965]
[1727821632669,0.163959,60991.0,60988.0,0.163965]
[1727821633350,0.491863,60993.0,60988.0,0.163965]
[1727821633602,0.163955,60993.0,60989.0,0.163963]
[1727821633841,0.163953,60993.0,60989.0,0.163963]
[1727821635050,0.163953,60993.0,60989.0,0.177963]
[1727821635770,0.163953,60993.0,60989.0,0.191963]
[1727821636225,0.18965504,60993.0,60989.0,0.191963]
[1727821638073,0.18965504,60993.0,60990.0,0.16396]
[1727821638325,0.02570204,60993.0,60989.0,0.028]
[1727821638549,0.02570204,60993.0,60989.0,0.191961]
[1727821638550,0.18965504,60993.0,60989.0,0.191961]
[1727821638997,0.18965504,60993.0,60990.0,0.163961]
[1727821639443,0.18965504,60993.0,60990.0,0.014]
[1727821639444,0.02570204,60993.0,60990.0,0.014]
[1727821639670,0.18965604,60993.0,60989.0,0.163963]
[1727821639896,0.18965604,60993.0,60989.0,0.177963]
[1727821640333,0.18965604,60993.0,60990.0,0.014]
[1727821640559,0.18965604,60993.0,60990.0,0.028]
[1727821640785,0.18965604,60993.0,60990.0,0.177961]
[1727821641491,0.163954,60993.0,60990.0,0.177961]
[1727821641960,0.163954,60993.0,60990.0,0.163961]
[1727821642437,0.24697185,60998.0,60989.0,0.015636]
[1727821642438,0.327901,60994.0,60989.0,0.015636]
[1727821642697,0.163961,60990.0,60989.0,0.001636]
[1727821642933,0.342261,60990.0,60989.0,0.001636]
[1727821643181,0.54790494,60990.0,60989.0,0.001636]
[1727821643605,0.49955711,60990.0,60989.0,0.001636]
[1727821644103,0.442261,60990.0,60989.0,0.001636]
[1727821644783,0.46796831,60990.0,60989.0,0.001636]
[1727821645014,0.46796831,60990.0,60989.0,0.015636]
[1727821645235,0.47350109,60990.0,60989.0,0.001636]
[1727821645453,0.47450109,60990.0,60989.0,0.001636]
[1727821645693,0.44879378,60990.0,60989.0,0.001636]
[1727821646378,0.44779378,60990.0,60989.0,0.001636]
[1727821647554,0.442261,60990.0,60989.0,0.001636]
[1727821647806,0.263961,60990.0,60989.0,0.001636]
[1727821648516,0.163961,60990.0,60989.0,0.001636]
[1727821648740,0.163961,60990.0,60989.0,0.004636]
[1727821648741,0.1896656,60990.0,60989.0,0.004636]
[1727821649695,0.1896656,60990.0,60989.0,0.001636]
[1727821649932,0.3615656,60990.0,60989.0,0.011636]
[1727821650395,0.335861,60990.0,60989.0,0.011636]
[1727821650622,0.435861,60990.0,60989.0,0.021636]
[1727821651095,0.435861,60990.0,60989.0,0.011636]
[1727821651096,0.6060487,60990.0,60989.0,0.011636]
[1727821651337,1.53721788,60990.0,60989.0,0.010636]
[1727821651553,1.44143688,60990.0,60989.0,0.010636]
[1727821651778,1.34688788,60990.0,60989.0,0.021636]
[1727821652005,1.34688788,60990.0,60989.0,0.010636]
[1727821652233,1.34888788,60990.0,60989.0,0.010636]
[1727821652455,1.34888788,60990.0,60989.0,0.001636]
[1727821652696,1.34688788,60990.0,60989.0,0.001636]
[1727821652886,1.37459521,60990.0,60989.0,0.001636]
[1727821653172,1.53747703,60990.0,60989.0,0.001636]
[1727821653417,1.5394309,60990.0,60989.0,0.001636]
[1727821653864,1.5394309,60990.0,60989.0,0.002136]
[1727821653865,1.53747703,60990.0,60989.0,0.002136]
[1727821654087,0.70153221,60990.0,60989.0,0.002136]
[1727821654307,0.70348608,60990.0,60989.0,0.002136]
[1727821654565,0.54431976,60990.0,60989.0,0.002136]
[1727821654810,1.63246976,60990.0,60989.0,0.002136]
[1727821655020,1.79735158,60990.0,60989.0,0.002136]
[1727821655320,1.71990603,60990.0,60989.0,0.002136]
[1727821655758,1.7258599,60990.0,60989.0,0.002136]
[1727821655975,1.7218599,60990.0,60989.0,0.002136]
[1727821656203,1.7248599,60990.0,60989.0,0.002136]
[1727821656452,1.77180786,60990.0,60989.0,0.002136]
[1727821657144,1.72290603,60990.0,60989.0,0.002136]
[1727821657415,1.77661143,60990.0,60989.0,0.002136]
[1727821657857,1.77180076,60990.0,60989.0,0.002136]
[1727821658300,1.49617903,60990.0,60989.0,0.002136]
[1727821658550,1.54507376,60990.0,60989.0,0.002136]
[1727821658772,1.49617903,60990.0,60989.0,0.002136]
[1727821660873,1.13852403,60990.0,60989.0,0.002136]
[1727821661094,1.07132403,60990.0,60989.0,0.002136]
[1727821661312,1.0762779,60990.0,60989.0,0.002136]
[1727821661590,1.12517263,60990.0,60989.0,0.002136]
[1727821662046,1.12321876,60990.0,60989.0,0.002136]
[1727821662531,0.46987421,60990.0,60989.0,0.002136]
[1727821662775,0.44416688,60990.0,60989.0,0.002136]
[1727821662992,0.34986688,60990.0,60989.0,0.002136]
[1727821664133,0.34686688,60990.0,60989.0,0.002136]
[1727821664374,0.34886688,60990.0,60989.0,0.002136]
[1727821664604,0.34686688,60990.0,60989.0,0.003136]
[1727821665102,0.34886688,60990.0,60989.0,0.003136]
[1727821665328,0.34686688,60990.0,60989.0,0.003136]
[1727821665555,0.34886688,60990.0,60989.0,0.003136]
[1727821665773,0.39795588,60990.0,60989.0,0.003136]
[1727821666002,0.42366424,60990.0,60989.0,0.003136]
[1727821666228,0.42366424,60990.0,60989.0,0.002136]
[1727821666473,0.58854606,60990.0,60989.0,0.002136]
[1727821666722,2.40286424,60990.0,60989.0,0.002136]
[1727821666959,2.45179482,60990.0,60989.0,0.002136]
[1727821667404,2.45374869,60990.0,60989.0,0.002136]
[1727821667866,2.12437982,60990.0,60989.0,0.002136]
[1727821668123,1.12607982,60990.0,60989.0,0.002136]
[1727821668340,1.24398493,60990.0,60989.0,0.002136]
[1727821668561,1.31738081,60990.0,60989.0,0.002136]
[1727821668788,1.29167245,60990.0,60989.0,0.002136]
[1727821669025,1.37251374,60990.0,60989.0,0.002136]
[1727821669475,1.34060304,60990.0,60989.0,0.002136]
[1727821670848,1.33864917,60990.0,60989.0,0.002136]
[1727821671302,1.17376735,60990.0,60989.0,0.002136]
[1727821671841,1.19947649,60990.0,60989.0,0.002136]
[1727821672475,1.07715002,60990.0,60989.0,0.002136]
[1727821672704,0.54613314,60990.0,60989.0,0.002136]
[1727821672941,0.42366502,60990.0,60989.0,0.002136]
[1727821673191,0.49714865,60990.0,60989.0,0.002136]
[1727821673426,0.39383951,60990.0,60989.0,0.002136]
[1727821673675,0.39183951,60990.0,60989.0,0.002136]
[1727821674130,0.39383951,60990.0,60989.0,0.002136]
[1727821674619,0.39583951,60990.0,60989.0,0.002136]
[1727821676159,0.39585644,60990.0,60989.0,0.002136]
[1727821676666,0.32235588,60990.0,60989.0,0.002136]
[1727821677542,0.42035663,60990.0,60989.0,0.002136]
[1727821678486,0.4203794,60990.0,60989.0,0.002136]
[1727821678696,0.32235588,60990.0,60989.0,0.002136]
[1727821678943,0.4163794,60990.0,60989.0,0.002136]
[1727821679156,0.4183794,60990.0,60989.0,0.002136]
[1727821680305,0.32035588,60990.0,60989.0,0.002136]
[1727821680515,0.34406392,60990.0,60989.0,0.002136]
[1727821680738,0.34506392,60990.0,60989.0,0.002136]